fUSD/lending_fUSD_20260116
["ID","MTS","AMOUNT","RATE_DAILY","PERIOD"]
[402138569,1768546238253,-17466.46711139,0.000179,2]
[402138570,1768546238262,-158.30651084,0.000179,2]
[402138571,1768546238272,-493.15,0.000179,2]
[402138572,1768546238282,-3546.61295768,0.00017933,2]
[402138573,1768546238291,-368.09,0.00017989,2]
[402138574,1768546238301,-1000.0,0.00017989,2]
[402138575,1768546238310,-1000.0,0.00017989,2]
[402138576,1768546238319,-1000.0,0.00017989,2]
[402138577,1768546238328,-1000.0,0.00017989,2]
[402138578,1768546238338,-1000.0,0.00017989,2]
[402138579,1768546238348,-1000.0,0.00017989,2]
[402138580,1768546238357,-1000.0,0.00017989,2]
[402138582,1768546238366,-1000.0,0.00017989,2]
[402138583,1768546238375,-1000.0,0.00017989,2]
[402138585,1768546238384,-1000.0,0.00017989,2]
[402138587,1768546238393,-1000.0,0.00017989,2]
[402138589,1768546238403,-718.13301207,0.00017989,2]
[402138590,1768546238412,-2000.0,0.00017989,2]
[402138591,1768546238422,-2000.0,0.00017989,2]
[402138593,1768546238431,-2000.0,0.00017989,2]
[402138594,1768546238440,-500.0,0.00017989,2]
[402138595,1768546238449,-2000.0,0.00017989,2]
[402138596,1768546238458,-500.0,0.00017989,2]
[402138597,1768546238467,-2000.0,0.00017989,2]
[402138598,1768546238478,-36.74238364,0.00017989,2]
[402138599,1768546238491,-463.25761636,0.00017989,2]
[402138600,1768546238500,-1000.0,0.00017989,2]
[402138601,1768546238510,-2000.0,0.00017989,2]
[402138602,1768546238520,-500.0,0.00017989,2]
[402138603,1768546238530,-1000.0,0.00017989,2]
[402138604,1768546238540,-2000.0,0.00017989,2]
[402138605,1768546238549,-500.0,0.00017989,2]
[402138606,1768546238559,-1000.0,0.00017989,2]
[402138607,1768546238569,-2000.0,0.00017989,2]
[402138608,1768546238578,-500.0,0.00017989,2]
[402138609,1768546238588,-1000.0,0.00017989,2]
[402138610,1768546238597,-2000.0,0.00017989,2]
[402138611,1768546238607,-500.0,0.00017989,2]
[402138612,1768546238616,-1000.0,0.00017989,2]
[402138613,1768546238626,-2000.0,0.00017989,2]
[402138614,1768546238636,-500.0,0.00017989,2]
[402138615,1768546238646,-1000.0,0.00017989,2]
[402138616,1768546238655,-2000.0,0.00017989,2]
[402138617,1768546238664,-500.0,0.00017989,2]
[402138618,1768546238674,-1000.0,0.00017989,2]
[402138619,1768546238683,-329.7601282,0.00017989,2]
[402138620,1768546238692,-199.2892777,0.00017989,2]
[402138621,1768546238701,-914.61,0.0001799,2]
[402138622,1768546238711,-914.61,0.0001799,2]
[402138623,1768546238720,-914.61,0.0001799,2]
[402138624,1768546238729,-914.61,0.0001799,2]
[402138625,1768546238739,-914.61,0.0001799,2]
[402138626,1768546238748,-500.0,0.00017998,2]
[402138627,1768546238758,-500.0,0.00017998,2]
[402138628,1768546238767,-500.0,0.00017998,2]
[402138629,1768546238777,-254.89839607,0.00017998,2]
[402138630,1768546238786,-500.0,0.00017998,2]
[402138631,1768546238795,-500.0,0.00017998,2]
[402138632,1768546238804,-500.0,0.00017998,2]
[402138633,1768546238814,-500.0,0.00017998,2]
[402138634,1768546238823,-500.0,0.00017998,2]
[402138635,1768546238833,-500.0,0.00017999,2]
[402138636,1768546238843,-206.25246168,0.00017999,2]
[402138637,1768546238852,-300.0,0.00017999,2]
[402138638,1768546238861,-4371.0,0.00018,2]
[402138639,1768546238871,-649836.25309163,0.00018,2]
[402138640,1768546238907,-720.01455073,0.00018,2]
[402138641,1768546240365,-1.7e-07,0.00018,2]
[402138642,1768546240406,-2077.96635,0.00018,2]
[402138643,1768546240421,-972.15998328,0.00018,2]
[402138644,1768546240431,-1123.42602351,0.00018,2]
[402138645,1768546240456,-6735954.86238382,0.00018,2]
[402138648,1768546240580,-2315.09651318,0.00018,2]
[402138691,1768546243307,-709.17,0.00018,2]
[402138692,1768546243320,-522.42396226,0.00018,2]
[402138693,1768546243331,-541.82394898,0.00018,2]
[402138718,1768546245973,-764.16862894,0.000179,2]
[402138719,1768546245983,-28.25418905,0.00018,2]
[402138720,1768546245994,-4622.37111257,0.00018,2]
[402138721,1768546246010,-16543.52888743,0.00018,2]
[402138722,1768546246021,-13209.030554,0.00018,2]
[402138782,1768546247292,-175024.48603379,0.00018,2]
[402138783,1768546247304,-1401.62327149,0.00018,2]
[402138784,1768546247315,-255424.47405291,0.00018,2]
[402138785,1768546247372,-405.8537147,0.00018,2]
[402138786,1768546247395,-5222.7419801,0.00018,2]
[402138787,1768546247434,-4296.75088854,0.00018,2]
[402138788,1768546247460,-1319.9480925,0.00018,2]
[402138789,1768546247578,-1081.03893058,0.00018,2]
[402138790,1768546247591,-11856.94146657,0.00018,2]
[402138791,1768546247855,-25.47061259,0.00018,2]
[402138792,1768546269744,500.0,0.00015773,2]
[402138793,1768546269977,500.0,0.00015773,2]
[402138794,1768546275049,500.0,0.00015773,2]
[402138795,1768546278558,500.0,0.00015773,2]
[402138796,1768546280287,500.0,0.00015773,2]
[402138797,1768546323609,500.0,0.00015773,2]
[402138798,1768546323643,734.02633366,0.00016321,2]
[402138799,1768546324489,500.0,0.00015773,2]
[402138800,1768546332465,502.20709128,0.00015773,2]
[402138801,1768546374254,151.0,0.00016426,2]
[402138802,1768546375460,151.0,0.00016426,2]
[402138803,1768546382300,152.17,0.00016434,2]
[402138804,1768546390184,500.0,0.00015773,2]
[402138805,1768546392065,151.0,0.00016421,2]
[402138806,1768546394448,500.0,0.00015773,2]
[402138807,1768546399568,504.50376843,0.00015773,2]
[402138808,1768546400219,500.0,0.00015773,2]
[402138809,1768546400275,500.0,0.00016321,2]
[402138810,1768546408023,151.0,0.00016432,2]
[402138811,1768546479259,413.82,0.00016995,2]
[402138812,1768546506082,500.0,0.00015773,2]
[402138813,1768546506418,501.40007541,0.00015773,2]
[402138814,1768546506453,500.0,0.00016321,2]
[402138815,1768546506514,211.77117296,0.00016438,2]
[402138816,1768546563613,500.92276068,0.00015773,2]
[402138817,1768546628068,500.0,0.00015773,2]
[402138818,1768546628148,501.94559639,0.00016321,2]
[402138821,1768546671403,166.66,0.00016161,2]
[402138822,1768546671806,166.66,0.00016501,2]
[402138823,1768546672012,166.66,0.00016842,2]
[402138824,1768546694573,1000.0,0.0003,120]
[402138825,1768546729388,2656.78,0.00016928,2]
[402138826,1768546743263,500.0,0.00015773,2]
[402138827,1768546743325,1000.0,0.00016321,2]
[402138828,1768546830348,779.75758063,0.0003,120]
[402138829,1768546916605,227.87,0.00017,2]
[402138830,1768547015369,250.0,0.00016834,2]
[402138835,1768547052870,1000.0,0.0003,120]
[402138836,1768547084347,4406.93,0.00014109,2]
[402138841,1768547188960,150.0,0.000162,2]
[402138842,1768547188989,150.0,0.00016329,2]
[402138843,1768547189065,150.0,0.00016457,2]
[402138844,1768547189149,150.0,0.00016586,2]
[402138845,1768547189269,150.0,0.00016843,2]
[402138846,1768547189345,150.0,0.00016714,2]
[402138847,1768547189417,150.0,0.00016971,2]
[402138848,1768547246250,-280.18613531,0.00017012,2]
[402138849,1768547413665,1769.4,0.00030137,120]
[402138859,1768547432190,-719.81386469,0.00017012,2]
[402138860,1768547432200,-150.0,0.000171,2]
[402138861,1768547432209,-166.66,0.00017182,2]
[402138862,1768547432218,-150.0,0.00017229,2]
[402138863,1768547432229,-264.8288,0.00017275,2]
[402138864,1768547432238,-150.0,0.00017357,2]
[402138865,1768547432247,-172.9,0.00017365,2]
[402138866,1768547432256,-999.0,0.00017365,3]
[402138867,1768547432265,-300.0,0.00017373,2]
[402138868,1768547432275,-1200.0,0.00017373,2]
[402138869,1768547432286,-488.29,0.00017374,2]
[402138870,1768547432296,-550.0,0.00017374,2]
[402138871,1768547432304,-33.94226967,0.00017374,2]
[402138872,1768547432340,-195.33538985,0.00017374,2]
[402138873,1768547432350,-122.93355875,0.00017374,2]
[402138890,1768547438508,-377.06644125,0.00017374,2]
[402138892,1768547438519,-500.0,0.00017374,2]
[402138894,1768547438528,-500.0,0.00017374,2]
[402138896,1768547438537,-500.0,0.00017374,2]
[402138898,1768547438547,-500.0,0.00017374,2]
[402138900,1768547438556,-500.0,0.00017374,2]
[402138902,1768547438566,-254.89839607,0.00017374,2]
[402138904,1768547438575,-500.0,0.00017374,2]
[402138906,1768547438585,-500.0,0.00017374,2]
[402138908,1768547438594,-150.0,0.00017486,2]
[402138910,1768547438604,-166.66,0.00017522,2]
[402138912,1768547438613,-150.0,0.00017614,2]
[402138914,1768547438622,-500.0,0.00017626,2]
[402138916,1768547438631,-500.0,0.00017626,2]
[402138918,1768547438641,-285.12441334,0.00017626,2]
[402138920,1768547438650,-488.29,0.00017648,2]
[402138922,1768547438659,-500.0,0.00017681,2]
[402138924,1768547438668,-500.0,0.00017681,2]
[402138926,1768547438678,-500.0,0.00017715,2]
[402138956,1768547439062,-157.24521761,0.00017715,2]
[402138958,1768547439073,-500.0,0.00017715,2]
[402138960,1768547439082,-150.0,0.00017715,2]
[402138961,1768547439092,-500.0,0.00017715,2]
[402138962,1768547439101,-150.0,0.00017715,2]
[402138963,1768547439110,-150.0,0.00017715,2]
[402138964,1768547439119,-500.0,0.00017736,2]
[402138965,1768547439129,-500.0,0.00017736,2]
[402138966,1768547439138,-150.0,0.00017743,2]
[402138967,1768547439147,-500.0,0.0001777,2]
[402138968,1768547439156,-500.0,0.0001777,2]
[402138969,1768547439166,-150.0,0.0001777,2]
[402138970,1768547439175,-500.0,0.0001777,2]
[402138971,1768547439185,-160.22059197,0.0001777,2]
[402138972,1768547439194,-150.0,0.0001777,2]
[402138973,1768547439204,-558.83188155,0.0001779,2]
[402138974,1768547439214,-500.0,0.0001779,2]
[402138975,1768547439224,-500.0,0.00017825,2]
[402138976,1768547439233,-191.44753185,0.00017825,2]
[402138977,1768547439242,-207.31527202,0.00017825,2]
[402138978,1768547439252,-500.0,0.00017825,2]
[402138979,1768547439261,-150.0,0.00017825,2]
[402138980,1768547439270,-500.0,0.00017825,2]
[402138981,1768547439280,-500.0,0.00017845,2]
[402138982,1768547439289,-200.0,0.00017856,2]
[402138983,1768547439298,-166.66,0.00017862,2]
[402138984,1768547439307,-150.0,0.00017871,2]
[402138985,1768547439316,-500.0,0.00017879,2]
[402138986,1768547439326,-500.0,0.00017879,2]
[402138987,1768547439335,-150.0,0.00017879,2]
[402138988,1768547439345,-500.0,0.00017899,2]
[402138989,1768547439354,-500.0,0.000179,2]
[402138990,1768547439364,-1000.0,0.000179,2]
[402138991,1768547439374,-162.45560487,0.000179,2]
[402138992,1768547439384,-42551.69349628,0.000179,2]
[402138993,1768547439393,-421.77203872,0.000179,2]
[402138994,1768547439403,-210.2948467,0.000179,2]
[402138995,1768547439412,-31241.80321977,0.000179,2]
[402138996,1768547439421,-488.29,0.00017922,2]
[402138997,1768547439431,-500.0,0.00017934,2]
[402138998,1768547439440,-545.51876054,0.00017934,2]
[402138999,1768547439449,-150.0,0.00017934,2]
[402139000,1768547439463,-500.0,0.00017955,2]
[402139001,1768547439472,-3021.0287,0.00017973,2]
[402139002,1768547439483,-152.67312027,0.00017973,2]
[402139003,1768547439492,-500.0,0.00017989,2]
[402139004,1768547439502,-182.12762624,0.00017989,2]
[402139005,1768547439512,-1000.0,0.00017989,2]
[402139006,1768547439521,-1000.0,0.00017989,2]
[402139007,1768547439531,-1000.0,0.00017989,2]
[402139008,1768547439540,-1000.0,0.00017989,2]
[402139009,1768547439550,-1000.0,0.00017989,2]
[402139010,1768547439560,-1000.0,0.00017989,2]
[402139011,1768547439570,-1000.0,0.00017989,2]
[402139012,1768547439579,-1000.0,0.00017989,2]
[402139013,1768547439588,-1000.0,0.00017989,2]
[402139014,1768547439598,-1000.0,0.00017989,2]
[402139015,1768547439607,-206.57197282,0.00017989,2]
[402139016,1768547439617,-1000.0,0.00017989,2]
[402139017,1768547439626,-199.2892777,0.00017989,2]
[402139018,1768547439636,-2000.0,0.00017989,2]
[402139019,1768547439646,-2000.0,0.00017989,2]
[402139020,1768547439655,-2000.0,0.00017989,2]
[402139021,1768547439665,-2000.0,0.00017989,2]
[402139022,1768547439674,-2000.0,0.00017989,2]
[402139023,1768547439683,-2000.0,0.00017989,2]
[402139024,1768547439693,-500.0,0.00017989,2]
[402139025,1768547439702,-2000.0,0.00017989,2]
[402139026,1768547439712,-500.0,0.00017989,2]
[402139027,1768547439721,-2000.0,0.00017989,2]
[402139028,1768547439731,-500.0,0.00017989,2]
[402139029,1768547439741,-1115.28157897,0.00017989,2]
[402139030,1768547439750,-500.0,0.00017989,2]
[402139031,1768547439759,-500.0,0.00017989,2]
[402139032,1768547439769,-500.0,0.00017989,2]
[402139033,1768547439778,-500.0,0.00017989,2]
[402139034,1768547439788,-293.01774456,0.00017989,2]
[402139035,1768547439797,-207.77385789,0.0001799,2]
[402139036,1768547439807,-206.25246168,0.00017999,2]
[402139037,1768547439817,-300.0,0.00017999,2]
[402139038,1768547439826,-4364.0,0.00018,2]
[402139039,1768547439841,-206.80402482,0.00018,2]
[402139040,1768547439851,-548943.35289415,0.00018,2]
[402139041,1768547439870,-1753.22431093,0.00018,2]
[402139042,1768547439885,-9418.5307151,0.00018,2]
[402139043,1768547439897,-9444.0,0.00018,2]
[402139044,1768547439910,-756000.0,0.00018,2]
[402139045,1768547439939,-301.76454383,0.00018,2]
[402139046,1768547440687,-6960.51664274,0.00018,2]
[402139051,1768547440754,-774.6985844,0.00018,2]
[402139053,1768547440766,-682.81730511,0.00018,2]
[402139060,1768547440825,-94539.15545336,0.00018,2]
[402139243,1768547443250,-8399.0,0.00018,2]
[402139245,1768547443262,-759.51195886,0.00018,2]
[402139247,1768547443272,-1137.80774843,0.00018,2]
[402139248,1768547443322,-1134.33247128,0.00018,2]
[402139249,1768547443333,-414.3325745,0.00018,2]
[402139250,1768547443345,-485.305,0.00018,2]
[402139251,1768547443385,-489.64607935,0.00018,2]
[402139252,1768547443498,-6064.93768914,0.00018,2]
[402139253,1768547443519,-97.93603019,0.00018,2]
[402139255,1768547446246,-19125.0,0.00018,2]
[402139256,1768547446257,-647.22640714,0.00018,2]
[402139257,1768547446268,-409.14193754,0.00018,2]
[402139258,1768547446362,-17493.29179915,0.00018,2]
[402139265,1768547598452,77441.2056,0.00018387,30]
[402139292,1768547704723,-500.0,0.00017012,2]
[402139293,1768547704746,-160.58721667,0.0001705,2]
[402139294,1768547709801,150.0,0.00017,2]
[402139295,1768547799200,513.74448392,0.00030136,120]
[402139296,1768547839867,-20.29418407,0.0001705,2]
[402139297,1768547839890,-150.0,0.00017098,2]
[402139298,1768547839912,-33.70942565,0.00017174,2]
[402139299,1768547910854,1600.0,0.00016944,2]
[402139300,1768547912560,1600.0,0.00025415,120]
[402139301,1768547977301,200.0,0.00016944,2]
[402139302,1768548082154,155.29,0.00016907,2]
[402139303,1768548095370,-116.29057435,0.00017174,2]
[402139304,1768548095391,-183.71501206,0.00017387,2]
[402139305,1768548097232,-166.12675303,0.00017387,2]
[402139307,1768548184662,-89.09493351,0.00017387,2]
[402139308,1768548184693,-139.6037181,0.00017598,2]
[402139309,1768548186057,-237.39152519,0.00017598,2]
[402139310,1768548189754,-419.28007477,0.00017598,2]
[402139311,1768548192146,-403.72468194,0.00017598,2]
[402139312,1768548192170,-110.75096242,0.00017599,2]
[402139313,1768548194149,-204.24903758,0.00017599,2]
[402139314,1768548194173,-64.24521532,0.00017599,2]
[402139315,1768548197555,-413.62305256,0.00017599,2]
[402139316,1768548199845,-290.91667314,0.00017599,2]
[402139317,1768548201321,-178.751655,0.00017599,2]
[402139318,1768548205439,-167.99761408,0.00017599,2]
[402139319,1768548207596,-136.42889493,0.00017599,2]
[402139320,1768548207620,-137.07816236,0.00017599,2]
[402139334,1768548329238,500.0,0.00016836,2]
[402139335,1768548352046,66153.58300794,0.000136,2]
[402139338,1768548504386,5436.5478219,0.00015873,2]
[402139339,1768548504592,14347.13571659,0.00015873,2]
[402139340,1768548505145,25310.04802439,0.00015873,2]
[402139341,1768548505839,37862.31814994,0.00015873,2]
[402139342,1768548506652,51229.0548,0.00015873,2]
[402139351,1768548631499,-166.66,0.00017447,2]
[402139352,1768548631510,-157.24521761,0.00017504,2]
[402139353,1768548631523,-500.0,0.00017504,2]
[402139354,1768548631536,-48.76009283,0.00017504,2]
[402139355,1768548631549,-451.23990717,0.00017504,2]
[402139356,1768548631562,-8.68205144,0.00017504,2]
[402139357,1768548631581,-141.31794856,0.00017504,2]
[402139358,1768548631592,-500.0,0.00017504,2]
[402139359,1768548631603,-300.0,0.00017522,2]
[402139360,1768548631612,-500.0,0.00017559,2]
[402139361,1768548631623,-500.0,0.00017559,2]
[402139362,1768548631633,-150.0,0.00017559,2]
[402139363,1768548631643,-500.0,0.00017559,2]
[402139364,1768548631653,-500.0,0.00017578,2]
[402139365,1768548631665,-500.0,0.00017578,2]
[402139366,1768548631675,-285.12441334,0.00017578,2]
[402139367,1768548631685,-150.0,0.00017578,2]
[402139368,1768548631695,-150.0,0.00017578,2]
[402139369,1768548631705,-110.13482654,0.00017588,2]
[402139370,1768548631717,-283.70497346,0.00017588,2]
[402139371,1768548631727,-377.07675919,0.000176,2]
[402139372,1768548631738,-926.05527075,0.000176,2]
[402139373,1768548631758,-331.34363075,0.000176,2]
[402139374,1768548631770,-13369.52433931,0.000176,2]
[402139375,1768548631779,-500.0,0.00017614,2]
[402139376,1768548631789,-191.44753185,0.00017614,2]
[402139377,1768548631802,-207.31527202,0.00017614,2]
[402139378,1768548631812,-93.55998755,0.00017614,2]
[402139379,1768548631828,-406.44001245,0.00017614,2]
[402139380,1768548631838,-500.0,0.00017633,2]
[402139381,1768548631848,-500.0,0.00017633,2]
[402139382,1768548631858,-160.22059197,0.00017633,2]
[402139383,1768548631869,-150.0,0.00017633,2]
[402139385,1768548631879,-2648.21047462,0.0001764,2]
[402139386,1768548631889,-150.0,0.0001765,2]
[402139388,1768548631898,-342.0,0.00017667,2]
[402139390,1768548631908,-500.0,0.00017668,2]
[402139392,1768548631918,-500.0,0.00017668,2]
[402139393,1768548631928,-1215.91123016,0.00017682,2]
[402139394,1768548631940,-1908.26909188,0.00017682,2]
[402139395,1768548631950,-500.0,0.00017688,2]
[402139396,1768548631959,-500.0,0.00017688,2]
[402139397,1768548631969,-150.0,0.00017688,2]
[402139398,1768548631979,-3124.18032197,0.00017706,2]
[402139399,1768548631988,-150.0,0.0001771,2]
[402139400,1768548632002,-500.0,0.00017723,2]
[402139401,1768548632011,-545.51876054,0.00017723,2]
[402139402,1768548632028,-3124.18032197,0.0001773,2]
[402139403,1768548632037,-558.83188155,0.00017742,2]
[402139404,1768548632047,-500.0,0.00017742,2]
[402139405,1768548632056,-150.0,0.00017742,2]
[402139406,1768548632066,-3021.0287,0.00017753,2]
[402139407,1768548632079,-1797.83361867,0.00017755,2]
[402139408,1768548632090,-290.05642929,0.00017755,2]
[402139409,1768548632117,-1036.29027401,0.00017755,2]
[402139410,1768548632126,-150.0,0.0001776,2]
[402139411,1768548632136,-966.37097615,0.00017769,2]
[402139412,1768548632147,-33.62902385,0.00017769,2]
[402139413,1768548632156,-1000.0,0.00017769,2]
[402139414,1768548632166,-1000.0,0.00017769,2]
[402139415,1768548632175,-28.50188699,0.00017769,2]
[402139416,1768548632187,-971.49811301,0.00017769,2]
[402139417,1768548632196,-1000.0,0.00017769,2]
[402139418,1768548632206,-1000.0,0.00017769,2]
[402139419,1768548632220,-1000.0,0.00017769,2]
[402139420,1768548632230,-199.2892777,0.00017769,2]
[402139421,1768548632240,-1000.0,0.00017769,2]
[402139422,1768548632254,-383.95107585,0.00017769,2]
[402139423,1768548632266,-616.04892415,0.00017769,2]
[402139424,1768548632279,-1000.0,0.00017769,2]
[402139425,1768548632290,-2000.0,0.00017769,2]
[402139426,1768548632300,-1000.0,0.00017769,2]
[402139427,1768548632310,-2000.0,0.00017769,2]
[402139428,1768548632320,-206.57197282,0.00017769,2]
[402139429,1768548632332,-2000.0,0.00017769,2]
[402139430,1768548632341,-2000.0,0.00017769,2]
[402139431,1768548632351,-2000.0,0.00017769,2]
[402139432,1768548632361,-2000.0,0.00017769,2]
[402139433,1768548632371,-2000.0,0.00017769,2]
[402139434,1768548632380,-2000.0,0.00017769,2]
[402139435,1768548632389,-500.0,0.00017769,2]
[402139436,1768548632399,-1115.28157897,0.00017769,2]
[402139437,1768548632408,-500.0,0.00017769,2]
[402139438,1768548632421,-500.0,0.00017769,2]
[402139439,1768548632430,-500.0,0.00017769,2]
[402139440,1768548632440,-500.0,0.00017769,2]
[402139441,1768548632451,-500.0,0.00017769,2]
[402139442,1768548632461,-500.0,0.00017769,2]
[402139443,1768548632471,-293.01774456,0.00017769,2]
[402139444,1768548632480,-150.0,0.00017777,2]
[402139445,1768548632489,-500.0,0.00017778,2]
[402139446,1768548632498,-390.64,0.00017778,2]
[402139447,1768548632508,-500.0,0.00017778,2]
[402139448,1768548632517,-500.0,0.00017778,2]
[402139449,1768548632529,-500.0,0.00017778,2]
[402139450,1768548632538,-500.0,0.00017778,2]
[402139451,1768548632547,-152.90461503,0.00017778,2]
[402139452,1768548632557,-500.0,0.00017778,2]
[402139453,1768548632566,-472.76648845,0.00017778,2]
[402139454,1768548632577,-500.0,0.00017778,2]
[402139455,1768548632586,-500.0,0.00017778,2]
[402139456,1768548632595,-500.0,0.00017778,2]
[402139457,1768548632604,-500.0,0.00017778,2]
[402139458,1768548632613,-500.0,0.00017778,2]
[402139459,1768548632623,-500.0,0.00017778,2]
[402139460,1768548632632,-500.0,0.00017778,2]
[402139461,1768548632642,-500.0,0.00017778,2]
[402139462,1768548632651,-500.0,0.00017778,2]
[402139463,1768548632660,-500.0,0.00017778,2]
[402139464,1768548632670,-500.0,0.00017778,2]
[402139465,1768548632680,-500.0,0.00017778,2]
[402139466,1768548632689,-312.3486169,0.00017778,2]
[402139467,1768548632699,-500.0,0.00017778,2]
[402139468,1768548632709,-500.0,0.00017778,2]
[402139469,1768548632718,-500.0,0.00017778,2]
[402139470,1768548632728,-500.0,0.00017778,2]
[402139471,1768548632738,-500.0,0.00017778,2]
[402139472,1768548632748,-500.0,0.00017778,2]
[402139473,1768548632757,-500.0,0.00017778,2]
[402139474,1768548632767,-500.0,0.00017778,2]
[402139475,1768548632779,-500.0,0.00017778,2]
[402139476,1768548632789,-500.0,0.00017778,2]
[402139477,1768548632798,-500.0,0.00017778,2]
[402139478,1768548632815,-500.0,0.00017778,2]
[402139479,1768548632828,-500.0,0.00017778,2]
[402139480,1768548632838,-500.0,0.00017778,2]
[402139481,1768548632847,-500.0,0.00017778,2]
[402139482,1768548632857,-3124.18032197,0.00017779,2]
[402139483,1768548632867,-500.0,0.00017797,2]
[402139484,1768548632877,-150.0,0.00017797,2]
[402139485,1768548632888,-3124.18032197,0.00017803,2]
[402139486,1768548632898,-3124.18032197,0.00017827,2]
[402139487,1768548632909,-500.0,0.00017833,2]
[402139488,1768548632919,-206.25246168,0.00017851,2]
[402139489,1768548632929,-3124.18032197,0.00017852,2]
[402139490,1768548632939,-500.0,0.00017852,2]
[402139491,1768548632951,-182.12762624,0.00017852,2]
[402139492,1768548632961,-200.0,0.00017856,2]
[402139493,1768548632971,-3124.18032197,0.00017876,2]
[402139494,1768548632981,-508.02149145,0.00017888,2]
[402139495,1768548632991,-1000.0,0.000179,2]
[402139496,1768548633000,-162.45560487,0.000179,2]
[402139497,1768548633011,-3124.18032197,0.000179,2]
[402139498,1768548633021,-421.77203872,0.000179,2]
[402139499,1768548633030,-509.44575262,0.000179,2]
[402139500,1768548633040,-756.71076834,0.000179,2]
[402139501,1768548633050,-42551.69349628,0.000179,2]
[402139502,1768548633061,-500.0,0.00017907,2]
[402139503,1768548633071,-500.0,0.00017962,2]
[402139504,1768548633082,-152.67312027,0.00017973,2]
[402139505,1768548633092,-644.3,0.00017989,2]
[402139506,1768548633102,-207.77385789,0.0001799,2]
[402139507,1768548633112,-207.77385789,0.0001799,2]
[402139508,1768548633123,-880.1710196,0.00017998,2]
[402139509,1768548633133,-8826.7978188,0.00017998,2]
[402139510,1768548633143,-80602.2327096,0.00017999,2]
[402139511,1768548633153,-8104.5438244,0.00017999,2]
[402139512,1768548633164,-300.0,0.00017999,2]
[402139513,1768548633174,-4364.0,0.00018,2]
[402139514,1768548633185,-60615.93844154,0.00018,2]
[402139515,1768548633889,-1727.69940483,0.00018,2]
[402139516,1768548633901,-4328.06566314,0.00018,2]
[402139517,1768548633921,-3045.52,0.00018,2]
[402139518,1768548633936,-835.19021143,0.00018,2]
[402139519,1768548633947,-567.05475244,0.00018,2]
[402139520,1768548633959,-8614.86124748,0.00018,2]
[402139521,1768548633974,-603.84235597,0.00018,2]
[402139522,1768548633985,-1024.16079093,0.00018,2]
[402139523,1768548633996,-4208.02539024,0.00018,2]
[402139524,1768548634014,-105702.43481532,0.00018,2]
[402139525,1768548634027,-357.87831592,0.00018,2]
[402139530,1768548637451,-2520.2389708,0.00018,2]
[402139531,1768548637496,-626.99,0.00018,2]
[402139532,1768548637536,-37954.00000006,0.00018,2]
[402139533,1768548637563,-683401.79613432,0.00018,2]
[402139534,1768548637605,-1997.75205,0.00018,2]
[402139535,1768548637617,-846.33812054,0.00018,2]
[402139536,1768548637628,-450.58499,0.00018,2]
[402139542,1768548637708,-2510.8565844,0.00018,2]
[402139585,1768548639642,-1668.8510257,0.00018,2]
[402139586,1768548639654,-347.053942,0.00018,2]
[402139587,1768548639670,-4065.58012154,0.00018,2]
[402139588,1768548639900,-5226.36233668,0.00018,2]
[402139589,1768548639912,-11520.23884485,0.00018,2]
[402139590,1768548639923,-50392.84425372,0.00018,2]
[402139591,1768548640062,-8722.04724838,0.00018,2]